fUSD/lending_fUSD_20251205
["ID","MTS","AMOUNT","RATE_DAILY","PERIOD"]
[396473296,1764978663636,-500.0,0.00024383,2]
[396473297,1764978663646,-500.0,0.00024383,2]
[396473298,1764978663655,-500.0,0.00024383,2]
[396473299,1764978663665,-500.0,0.00024383,2]
[396473300,1764978663674,-554.25,0.00024383,2]
[396473301,1764978663684,-630.88,0.00024383,2]
[396473302,1764978663693,-500.0,0.00024383,2]
[396473303,1764978663703,-265.46414723,0.00024383,2]
[396473304,1764978663714,-500.0,0.00024383,2]
[396473305,1764978663725,-500.0,0.00024383,2]
[396473306,1764978663736,-500.0,0.00024383,2]
[396473307,1764978663746,-567.8,0.00024383,2]
[396473308,1764978663756,-500.0,0.00024383,2]
[396473309,1764978663767,-516.53,0.00024383,2]
[396473310,1764978663778,-503.91,0.00024383,2]
[396473311,1764978663789,-703.02,0.00024383,2]
[396473312,1764978663802,-500.0,0.00024383,2]
[396473313,1764978663811,-1145.73,0.00024383,2]
[396473314,1764978663822,-703.94,0.00024383,2]
[396473315,1764978663834,-500.0,0.00024383,2]
[396473316,1764978663844,-500.0,0.00024383,2]
[396473317,1764978663853,-500.0,0.00024383,2]
[396473318,1764978663863,-500.0,0.00024383,2]
[396473319,1764978663873,-500.0,0.00024383,2]
[396473320,1764978663883,-500.0,0.00024383,2]
[396473321,1764978663893,-500.0,0.00024383,2]
[396473322,1764978663902,-500.0,0.00024383,2]
[396473323,1764978663912,-500.0,0.00024383,2]
[396473324,1764978663921,-964.3,0.00024383,2]
[396473325,1764978663930,-500.0,0.00024383,2]
[396473326,1764978663940,-500.0,0.00024383,2]
[396473327,1764978663950,-500.0,0.00024383,2]
[396473328,1764978663960,-500.0,0.00024383,2]
[396473329,1764978663969,-1232.68,0.00024383,2]
[396473330,1764978663979,-1777.68,0.00024383,2]
[396473331,1764978663988,-500.0,0.00024383,2]
[396473332,1764978663997,-500.0,0.00024383,2]
[396473333,1764978664007,-940.96,0.00024383,2]
[396473334,1764978664016,-500.0,0.00024383,2]
[396473335,1764978664026,-987.16,0.00024383,2]
[396473336,1764978664035,-500.0,0.00024383,2]
[396473337,1764978664046,-500.0,0.00024383,2]
[396473338,1764978664055,-500.0,0.00024383,2]
[396473339,1764978664065,-719.86,0.00024383,2]
[396473340,1764978664076,-500.0,0.00024383,2]
[396473341,1764978664086,-1156.37,0.00024383,2]
[396473342,1764978664095,-500.0,0.00024383,2]
[396473343,1764978664105,-500.0,0.00024383,2]
[396473344,1764978664114,-500.0,0.00024383,2]
[396473345,1764978664123,-544.3,0.00024383,2]
[396473346,1764978664134,-912.17,0.00024383,2]
[396473347,1764978664143,-500.0,0.00024383,2]
[396473348,1764978664156,-500.0,0.00024383,2]
[396473349,1764978664167,-969.23,0.00024383,2]
[396473350,1764978664176,-500.0,0.00024383,2]
[396473351,1764978664186,-500.0,0.00024383,2]
[396473352,1764978664196,-500.0,0.00024383,2]
[396473353,1764978664206,-670.07,0.00024383,2]
[396473354,1764978664217,-500.0,0.00024383,2]
[396473355,1764978664227,-500.0,0.00024383,2]
[396473356,1764978664236,-500.0,0.00024383,2]
[396473357,1764978664247,-500.0,0.00024383,2]
[396473358,1764978664256,-500.0,0.00024383,2]
[396473359,1764978664267,-500.0,0.00024383,2]
[396473360,1764978664277,-500.0,0.00024383,2]
[396473361,1764978664288,-500.0,0.00024383,2]
[396473362,1764978664298,-500.0,0.00024383,2]
[396473363,1764978664308,-603.35,0.00024383,2]
[396473364,1764978664317,-500.0,0.00024383,2]
[396473365,1764978664328,-500.0,0.00024383,2]
[396473366,1764978664340,-219.2102126,0.00024383,2]
[396473367,1764978664350,-500.0,0.00024383,2]
[396473368,1764978664362,-500.0,0.00024383,2]
[396473369,1764978664372,-500.0,0.00024383,2]
[396473370,1764978664382,-623.28,0.00024383,2]
[396473371,1764978664393,-500.0,0.00024383,2]
[396473372,1764978664402,-1095.31,0.00024383,2]
[396473373,1764978664411,-500.0,0.00024383,2]
[396473374,1764978664421,-500.0,0.00024383,2]
[396473375,1764978664431,-611.52,0.00024383,2]
[396473376,1764978664441,-500.0,0.00024383,2]
[396473377,1764978664451,-500.0,0.00024383,2]
[396473378,1764978664462,-500.0,0.00024383,2]
[396473379,1764978664472,-500.0,0.00024383,2]
[396473380,1764978664482,-500.0,0.00024383,2]
[396473381,1764978664493,-403.00109,0.00024383,2]
[396473382,1764978664504,-500.0,0.00024383,2]
[396473383,1764978664515,-500.0,0.00024383,2]
[396473384,1764978664527,-773.05,0.00024383,2]
[396473385,1764978664537,-815.01,0.00024383,2]
[396473386,1764978664547,-403.00109,0.00024383,2]
[396473387,1764978664556,-500.0,0.00024383,2]
[396473388,1764978664566,-500.0,0.00024383,2]
[396473389,1764978664576,-504.7,0.00024383,2]
[396473390,1764978664585,-547.14,0.00024383,2]
[396473391,1764978664595,-403.00109,0.00024383,2]
[396473392,1764978664604,-500.0,0.00024383,2]
[396473393,1764978664614,-500.0,0.00024383,2]
[396473394,1764978664623,-500.0,0.00024383,2]
[396473395,1764978664633,-801.04,0.00024383,2]
[396473396,1764978664643,-403.00109,0.00024383,2]
[396473397,1764978664652,-500.0,0.00024383,2]
[396473398,1764978664662,-500.0,0.00024383,2]
[396473399,1764978664671,-2779.14,0.00024383,2]
[396473400,1764978664682,-500.0,0.00024383,2]
[396473401,1764978664693,-500.0,0.00024383,2]
[396473402,1764978664703,-891.32,0.00024383,2]
[396473403,1764978664714,-1487.53,0.00024383,2]
[396473404,1764978664725,-201.16,0.00024383,2]
[396473405,1764978664735,-500.0,0.00024383,2]
[396473406,1764978664745,-426.69735583,0.00024383,2]
[396473407,1764978664755,-557.18,0.00024383,2]
[396473408,1764978664764,-151.0,0.00024383,2]
[396473409,1764978664773,-3185.42,0.00024383,2]
[396473410,1764978664783,-500.0,0.00024383,2]
[396473411,1764978664793,-500.0,0.00024383,2]
[396473412,1764978664803,-500.0,0.00024383,2]
[396473413,1764978664812,-500.0,0.00024383,2]
[396473414,1764978664822,-500.0,0.00024383,2]
[396473415,1764978664832,-500.0,0.00024383,2]
[396473416,1764978664841,-500.0,0.00024383,2]
[396473417,1764978664853,-800.0,0.00024399,2]
[396473418,1764978664863,-5929.0,0.00024399,2]
[396473419,1764978664874,-1000.0,0.0002442,2]
[396473420,1764978664885,-617.40005154,0.0002442,2]
[396473421,1764978664895,-500.0,0.0002442,2]
[396473422,1764978664904,-150.0,0.00024441,2]
[396473423,1764978664915,-1000.0,0.00024446,2]
[396473424,1764978664926,-1000.0,0.00024457,2]
[396473425,1764978664936,-500.0,0.00024473,2]
[396473426,1764978664946,-536.38917949,0.00024473,2]
[396473427,1764978664956,-500.0,0.00024473,2]
[396473428,1764978664967,-500.0,0.00024473,2]
[396473429,1764978664977,-500.0,0.00024473,2]
[396473430,1764978664986,-590.12027527,0.00024473,2]
[396473431,1764978664996,-160.1774215,0.00024473,2]
[396473432,1764978665006,-500.0,0.00024473,2]
[396473433,1764978665100,-500.0,0.00024473,2]
[396473434,1764978665111,-500.0,0.00024473,2]
[396473435,1764978665122,-500.0,0.00024473,2]
[396473436,1764978665131,-500.0,0.00024473,2]
[396473437,1764978665141,-500.0,0.00024473,2]
[396473438,1764978665151,-500.0,0.00024473,2]
[396473439,1764978665163,-500.0,0.00024473,2]
[396473440,1764978665174,-500.0,0.00024473,2]
[396473441,1764978665183,-500.0,0.00024473,2]
[396473442,1764978665194,-500.0,0.00024473,2]
[396473443,1764978665206,-500.0,0.00024473,2]
[396473444,1764978665216,-500.0,0.00024473,2]
[396473445,1764978665225,-500.0,0.00024473,2]
[396473446,1764978665237,-500.0,0.00024473,2]
[396473447,1764978665247,-275.86723002,0.00024473,2]
[396473448,1764978665256,-500.0,0.00024473,2]
[396473449,1764978665266,-164.96430392,0.00024473,2]
[396473450,1764978665275,-500.0,0.00024473,2]
[396473451,1764978665286,-500.0,0.00024473,2]
[396473452,1764978665296,-500.0,0.00024473,2]
[396473453,1764978665305,-500.0,0.00024473,2]
[396473454,1764978665315,-159.45765875,0.00024473,2]
[396473455,1764978665324,-500.0,0.00024473,2]
[396473456,1764978665334,-500.0,0.00024473,2]
[396473457,1764978665344,-624.39073525,0.00024473,2]
[396473458,1764978665354,-168.25159126,0.00024473,2]
[396473459,1764978665364,-500.0,0.00024473,2]
[396473460,1764978665375,-500.0,0.00024473,2]
[396473461,1764978665384,-179.13203725,0.00024473,2]
[396473462,1764978665394,-500.0,0.00024473,2]
[396473463,1764978665404,-500.0,0.00024473,2]
[396473464,1764978665414,-7602.13302466,0.00024484,2]
[396473465,1764978665424,-1000.0,0.00024495,2]
[396473466,1764978665435,-500.0,0.00024501,2]
[396473467,1764978665446,-184.12,0.00024502,2]
[396473468,1764978665456,-800.0,0.00024506,2]
[396473469,1764978665468,-151.0,0.00024512,2]
[396473470,1764978665479,-500.0,0.00024514,2]
[396473471,1764978665488,-181.25162639,0.00024557,2]
[396473472,1764978665501,-282.63761062,0.00024557,2]
[396473473,1764978665511,-1424.29572628,0.00024557,2]
[396473474,1764978665520,-177.5262,0.0002456,2]
[396473475,1764978665531,-9323.56970353,0.00024565,2]
[396473476,1764978665541,-150.0,0.00024594,2]
[396473477,1764978665552,-7602.13302466,0.000246,2]
[396473478,1764978665561,-209.2315377,0.00024601,8]
[396473479,1764978665572,-3054.634,0.00024611,7]
[396473480,1764978665581,-185.302,0.00024611,7]
[396473481,1764978665591,-189.06448687,0.0002463,4]
[396473482,1764978665600,-150.0,0.0002463,4]
[396473483,1764978665619,-150.0,0.0002463,4]
[396473484,1764978665630,-150.0,0.0002463,4]
[396473485,1764978665640,-150.0,0.0002463,4]
[396473486,1764978665649,-201.24982805,0.0002463,4]
[396473487,1764978665660,-1000.0,0.00024635,2]
[396473488,1764978665672,-603.41579511,0.00024647,2]
[396473489,1764978665682,-441.88177,0.00024657,2]
[396473490,1764978665694,-304.934409,0.00024657,2]
[396473491,1764978665704,-540.916851,0.00024657,2]
[396473492,1764978665715,-219.02971,0.00024657,2]
[396473493,1764978665726,-500.0,0.00024657,2]
[396473494,1764978665738,-606.04,0.00024657,2]
[396473495,1764978665749,-500.0,0.00024657,2]
[396473496,1764978665759,-500.0,0.00024657,2]
[396473497,1764978665769,-655.75,0.00024657,2]
[396473498,1764978665780,-500.0,0.00024657,2]
[396473499,1764978665792,-500.0,0.00024657,2]
[396473500,1764978665801,-500.0,0.00024657,2]
[396473501,1764978665814,-500.0,0.00024657,2]
[396473502,1764978665824,-500.0,0.00024657,2]
[396473503,1764978665833,-500.0,0.00024657,2]
[396473504,1764978665842,-500.0,0.00024657,2]
[396473505,1764978665853,-500.0,0.00024657,2]
[396473506,1764978665864,-500.0,0.00024657,2]
[396473507,1764978665874,-1004.87,0.00024657,2]
[396473508,1764978665883,-517.86,0.00024657,2]
[396473509,1764978665893,-500.0,0.00024657,2]
[396473510,1764978665902,-500.0,0.00024657,2]
[396473511,1764978665911,-500.0,0.00024657,2]
[396473512,1764978665920,-500.0,0.00024657,2]
[396473513,1764978665929,-500.0,0.00024657,2]
[396473514,1764978665939,-500.0,0.00024657,2]
[396473515,1764978665948,-500.0,0.00024657,2]
[396473516,1764978665958,-956.76,0.00024657,2]
[396473517,1764978665970,-500.0,0.00024657,2]
[396473518,1764978665981,-500.0,0.00024657,2]
[396473519,1764978665990,-587.82,0.00024657,2]
[396473520,1764978666000,-500.0,0.00024657,2]
[396473521,1764978666010,-500.0,0.00024657,2]
[396473522,1764978666021,-844.36,0.00024657,2]
[396473523,1764978666031,-500.0,0.00024657,2]
[396473524,1764978666041,-500.0,0.00024657,2]
[396473525,1764978666051,-500.0,0.00024657,2]
[396473526,1764978666061,-500.0,0.00024657,2]
[396473527,1764978666071,-500.0,0.00024657,2]
[396473528,1764978666080,-766.61,0.00024657,2]
[396473529,1764978666091,-500.0,0.00024657,2]
[396473530,1764978666100,-500.0,0.00024657,2]
[396473531,1764978666110,-500.0,0.00024657,2]
[396473532,1764978666120,-500.0,0.00024657,2]
[396473533,1764978666129,-500.0,0.00024657,2]
[396473534,1764978666138,-635.52,0.00024657,2]
[396473535,1764978666147,-500.0,0.00024657,2]
[396473536,1764978666161,-500.0,0.00024657,2]
[396473537,1764978666170,-500.0,0.00024657,2]
[396473538,1764978666180,-632.98869421,0.00024657,2]
[396473539,1764978666189,-500.0,0.00024657,2]
[396473540,1764978666199,-500.0,0.00024657,2]
[396473541,1764978666208,-500.0,0.00024657,2]
[396473542,1764978666217,-500.0,0.00024657,2]
[396473543,1764978666228,-500.0,0.00024657,2]
[396473544,1764978666238,-677.71,0.00024657,2]
[396473545,1764978666249,-500.0,0.00024657,2]
[396473546,1764978666259,-500.0,0.00024657,2]
[396473547,1764978666268,-500.0,0.00024657,2]
[396473548,1764978666279,-500.0,0.00024657,2]
[396473549,1764978666290,-500.0,0.00024657,2]
[396473550,1764978666300,-500.0,0.00024657,2]
[396473551,1764978666311,-500.0,0.00024657,2]
[396473552,1764978666321,-394.72786028,0.00024657,2]
[396473553,1764978666332,-534.79945656,0.00024657,2]
[396473554,1764978666342,-500.0,0.00024657,2]
[396473555,1764978666352,-500.0,0.00024657,2]
[396473556,1764978666362,-603.04,0.00024657,2]
[396473557,1764978666371,-500.0,0.00024657,2]
[396473558,1764978666382,-500.0,0.00024657,2]
[396473559,1764978666392,-500.0,0.00024657,2]
[396473560,1764978666401,-500.0,0.00024657,2]
[396473561,1764978666412,-500.0,0.00024657,2]
[396473562,1764978666423,-337.10071189,0.00024657,2]
[396473563,1764978666435,-500.0,0.00024657,2]
[396473564,1764978666447,-500.0,0.00024657,2]
[396473565,1764978666459,-500.0,0.00024657,2]
[396473566,1764978666468,-500.0,0.00024657,2]
[396473567,1764978666477,-500.0,0.00024657,2]
[396473568,1764978666486,-500.0,0.00024657,2]
[396473569,1764978666495,-500.0,0.00024657,2]
[396473570,1764978666504,-500.0,0.00024657,2]
[396473571,1764978666513,-500.0,0.00024657,2]
[396473572,1764978666522,-500.0,0.00024657,2]
[396473573,1764978666531,-500.0,0.00024657,2]
[396473574,1764978666540,-500.0,0.00024657,2]
[396473575,1764978666550,-500.0,0.00024657,2]
[396473576,1764978666560,-500.0,0.00024657,2]
[396473577,1764978666570,-500.0,0.00024657,2]
[396473578,1764978666579,-500.0,0.00024657,2]
[396473579,1764978666589,-500.0,0.00024657,2]
[396473580,1764978666599,-500.0,0.00024657,2]
[396473581,1764978666609,-500.0,0.00024657,2]
[396473582,1764978666619,-572.1,0.00024657,2]
[396473583,1764978666629,-500.0,0.00024657,2]
[396473584,1764978666640,-500.0,0.00024657,2]
[396473585,1764978666651,-662.63,0.00024657,2]
[396473586,1764978666662,-500.0,0.00024657,2]
[396473587,1764978666671,-500.0,0.00024657,2]
[396473588,1764978666684,-500.0,0.00024657,2]
[396473589,1764978666693,-500.0,0.00024657,2]
[396473590,1764978666702,-500.0,0.00024657,2]
[396473591,1764978666712,-500.0,0.00024657,2]
[396473592,1764978666722,-500.0,0.00024657,2]
[396473593,1764978666733,-500.0,0.00024657,2]
[396473594,1764978666742,-617.17,0.00024657,2]
[396473595,1764978666753,-500.0,0.00024657,2]
[396473596,1764978666764,-500.0,0.00024657,2]
[396473597,1764978666774,-597.04,0.00024657,2]
[396473598,1764978666784,-500.0,0.00024657,2]
[396473599,1764978666794,-500.0,0.00024657,2]
[396473600,1764978666803,-500.0,0.00024657,2]
[396473601,1764978666812,-500.0,0.00024657,2]
[396473602,1764978666822,-500.0,0.00024657,2]
[396473603,1764978666831,-512.42,0.00024657,2]
[396473604,1764978666841,-519.76,0.00024657,2]
[396473605,1764978666850,-548.85,0.00024657,2]
[396473606,1764978666861,-500.0,0.00024657,2]
[396473607,1764978666872,-500.0,0.00024657,2]
[396473608,1764978666882,-500.0,0.00024657,2]
[396473609,1764978666892,-500.0,0.00024657,2]
[396473610,1764978666901,-500.0,0.00024657,2]
[396473611,1764978666911,-500.0,0.00024657,2]
[396473612,1764978666921,-500.0,0.00024657,2]
[396473613,1764978666931,-500.0,0.00024657,2]
[396473614,1764978666940,-500.0,0.00024657,2]
[396473615,1764978666949,-675.05,0.00024657,2]
[396473616,1764978666958,-500.0,0.00024657,2]
[396473617,1764978666968,-500.0,0.00024657,2]
[396473618,1764978666977,-500.0,0.00024657,2]
[396473619,1764978666988,-500.0,0.00024657,2]
[396473620,1764978666998,-630.4,0.00024657,2]
[396473621,1764978667008,-500.0,0.00024657,2]
[396473622,1764978667017,-500.0,0.00024657,2]
[396473623,1764978667026,-500.0,0.00024657,2]
[396473624,1764978667036,-500.0,0.00024657,2]
[396473625,1764978667045,-500.0,0.00024657,2]
[396473626,1764978667054,-500.0,0.00024657,2]
[396473627,1764978667064,-500.0,0.00024657,2]
[396473628,1764978667073,-500.0,0.00024657,2]
[396473629,1764978667082,-614.97,0.00024657,2]
[396473630,1764978667091,-500.0,0.00024657,2]
[396473631,1764978667101,-636.19,0.00024657,2]
[396473632,1764978667110,-500.0,0.00024657,2]
[396473633,1764978667120,-500.0,0.00024657,2]
[396473634,1764978667130,-502.28,0.00024657,2]
[396473635,1764978667139,-648.41,0.00024657,2]
[396473636,1764978667149,-500.0,0.00024657,2]
[396473637,1764978667164,-500.0,0.00024657,2]
[396473638,1764978667173,-500.0,0.00024657,2]
[396473639,1764978667184,-500.0,0.00024657,2]
[396473640,1764978667195,-500.0,0.00024657,2]
[396473641,1764978667205,-500.0,0.00024657,2]
[396473642,1764978667215,-500.0,0.00024657,2]
[396473643,1764978667225,-500.0,0.00024657,2]
[396473644,1764978667237,-500.0,0.00024657,2]
[396473645,1764978667247,-601.06,0.00024657,2]
[396473646,1764978667257,-500.0,0.00024657,2]
[396473647,1764978667267,-515.21,0.00024657,2]
[396473648,1764978667276,-574.72,0.00024657,2]
[396473649,1764978667287,-500.0,0.00024657,2]
[396473650,1764978667298,-500.0,0.00024657,2]
[396473651,1764978667309,-500.0,0.00024657,2]
[396473652,1764978667319,-500.0,0.00024657,2]
[396473653,1764978667331,-500.0,0.00024657,2]
[396473654,1764978667343,-500.0,0.00024657,2]
[396473655,1764978667353,-500.0,0.00024657,2]
[396473656,1764978667363,-522.64,0.00024657,2]
[396473657,1764978667373,-500.0,0.00024657,2]
[396473658,1764978667383,-572.22,0.00024657,2]
[396473659,1764978667392,-500.0,0.00024657,2]
[396473660,1764978667402,-500.0,0.00024657,2]
[396473661,1764978667412,-500.0,0.00024657,2]
[396473662,1764978667422,-500.0,0.00024657,2]
[396473663,1764978667431,-500.0,0.00024657,2]
[396473664,1764978667441,-500.0,0.00024657,2]
[396473665,1764978667451,-500.0,0.00024657,2]
[396473666,1764978667461,-500.0,0.00024657,2]
[396473667,1764978667471,-500.0,0.00024657,2]
[396473668,1764978667481,-500.0,0.00024657,2]
[396473669,1764978667491,-500.0,0.00024657,2]
[396473670,1764978667501,-500.0,0.00024657,2]
[396473671,1764978667511,-500.0,0.00024657,2]
[396473672,1764978667520,-500.0,0.00024657,2]
[396473673,1764978667530,-500.0,0.00024657,2]
[396473674,1764978667540,-500.0,0.00024657,2]
[396473675,1764978667549,-500.0,0.00024657,2]
[396473676,1764978667559,-572.08820682,0.00024657,2]
[396473677,1764978667570,-500.0,0.00024657,2]
[396473678,1764978667579,-675.64,0.00024657,2]
[396473679,1764978667589,-500.0,0.00024657,2]
[396473680,1764978667599,-572.82,0.00024657,2]
[396473681,1764978667609,-500.0,0.00024657,2]
[396473682,1764978667618,-500.0,0.00024657,2]
[396473683,1764978667628,-500.0,0.00024657,2]
[396473684,1764978667638,-500.0,0.00024657,2]
[396473685,1764978667648,-500.0,0.00024657,2]
[396473686,1764978667658,-500.0,0.00024657,2]
[396473687,1764978667668,-500.0,0.00024657,2]
[396473688,1764978667678,-500.0,0.00024657,2]
[396473689,1764978667688,-300.0,0.00024657,3]
[396473690,1764978667698,-300.0,0.00024657,3]
[396473691,1764978667709,-500.0,0.00024657,2]
[396473692,1764978667719,-500.0,0.00024657,2]
[396473693,1764978667730,-500.0,0.00024657,2]
[396473694,1764978667741,-500.0,0.00024657,2]
[396473695,1764978667751,-1095.74,0.00024657,2]
[396473696,1764978667763,-500.0,0.00024657,2]
[396473697,1764978667774,-500.0,0.00024657,2]
[396473698,1764978667786,-531.75,0.00024657,2]
[396473699,1764978667796,-471.40794663,0.00024657,2]
[396473700,1764978667807,-527.97,0.00024657,2]
[396473701,1764978667819,-500.0,0.00024657,2]
[396473702,1764978667829,-500.0,0.00024657,2]
[396473703,1764978667838,-500.0,0.00024657,2]
[396473704,1764978667848,-500.0,0.00024657,2]
[396473705,1764978667858,-864.76,0.00024657,2]
[396473706,1764978667867,-500.0,0.00024657,2]
[396473707,1764978667876,-500.0,0.00024657,2]
[396473708,1764978667886,-500.0,0.00024657,2]
[396473709,1764978667896,-500.0,0.00024657,2]
[396473710,1764978667906,-505.59,0.00024657,2]
[396473711,1764978667916,-500.0,0.00024657,2]
[396473712,1764978667926,-500.0,0.00024657,2]
[396473713,1764978667937,-500.0,0.00024657,2]
[396473714,1764978667947,-500.0,0.00024657,2]
[396473715,1764978667956,-500.0,0.00024657,2]
[396473716,1764978667967,-500.0,0.00024657,2]
[396473717,1764978667978,-500.0,0.00024657,2]
[396473718,1764978667989,-571.29,0.00024657,2]
[396473719,1764978667999,-500.0,0.00024657,2]
[396473720,1764978668009,-500.0,0.00024657,2]
[396473721,1764978668019,-500.0,0.00024657,2]
[396473722,1764978668029,-500.0,0.00024657,2]
[396473723,1764978668039,-500.0,0.00024657,2]
[396473724,1764978668049,-500.0,0.00024657,2]
[396473725,1764978668059,-500.0,0.00024657,2]
[396473726,1764978668070,-500.0,0.00024657,2]
[396473727,1764978668080,-500.0,0.00024657,2]
[396473728,1764978668091,-687.09,0.00024657,2]
[396473729,1764978668101,-500.0,0.00024657,2]
[396473730,1764978668111,-500.0,0.00024657,2]
[396473731,1764978668120,-500.0,0.00024657,2]
[396473732,1764978668130,-500.0,0.00024657,2]
[396473733,1764978668140,-627.31,0.00024657,2]
[396473734,1764978668150,-500.0,0.00024657,2]
[396473735,1764978668164,-500.0,0.00024657,2]
[396473736,1764978668174,-545.86,0.00024657,2]
[396473737,1764978668184,-563.99,0.00024657,2]
[396473738,1764978668193,-500.0,0.00024657,2]
[396473739,1764978668203,-858.19,0.00024657,2]
[396473740,1764978668213,-500.0,0.00024657,2]
[396473741,1764978668223,-500.0,0.00024657,2]
[396473742,1764978668233,-500.0,0.00024657,2]
[396473743,1764978668243,-500.0,0.00024657,2]
[396473744,1764978668252,-500.0,0.00024657,2]
[396473745,1764978668262,-500.0,0.00024657,2]
[396473746,1764978668272,-530.01,0.00024657,2]
[396473747,1764978668282,-500.0,0.00024657,2]
[396473748,1764978668292,-500.0,0.00024657,2]
[396473749,1764978668302,-500.0,0.00024657,2]
[396473750,1764978668312,-500.0,0.00024657,2]
[396473751,1764978668322,-500.0,0.00024657,2]
[396473752,1764978668332,-836.19,0.00024657,2]
[396473753,1764978668342,-500.0,0.00024657,2]
[396473754,1764978668351,-500.0,0.00024657,2]
[396473755,1764978668361,-500.0,0.00024657,2]
[396473756,1764978668371,-500.0,0.00024657,2]
[396473757,1764978668380,-500.0,0.00024657,2]
[396473758,1764978668391,-657.8,0.00024657,2]
[396473759,1764978668400,-714.74,0.00024657,2]
[396473760,1764978668409,-500.0,0.00024657,2]
[396473761,1764978668420,-500.0,0.00024657,2]
[396473762,1764978668430,-500.0,0.00024657,2]
[396473763,1764978668441,-500.0,0.00024657,2]
[396473764,1764978668451,-500.0,0.00024657,2]
[396473765,1764978668460,-500.0,0.00024657,2]
[396473766,1764978668470,-500.0,0.00024657,2]
[396473767,1764978668480,-635.97,0.00024657,2]
[396473768,1764978668490,-500.0,0.00024657,2]
[396473769,1764978668499,-587.51,0.00024657,2]
[396473770,1764978668509,-500.0,0.00024657,2]
[396473771,1764978668519,-500.0,0.00024657,2]
[396473772,1764978668529,-500.0,0.00024657,2]
[396473773,1764978668539,-500.0,0.00024657,2]
[396473774,1764978668549,-500.0,0.00024657,2]
[396473775,1764978668559,-500.0,0.00024657,2]
[396473776,1764978668569,-500.0,0.00024657,2]
[396473777,1764978668578,-500.0,0.00024657,2]
[396473778,1764978668588,-500.0,0.00024657,2]
[396473779,1764978668597,-500.0,0.00024657,2]
[396473780,1764978668609,-500.0,0.00024657,2]
[396473781,1764978668619,-876.7,0.00024657,2]
[396473782,1764978668629,-311.15109253,0.00024657,2]
[396473783,1764978669575,-188.84890747,0.00024657,2]
[396473784,1764978669585,-464.83522935,0.00024657,2]
[396473785,1764978669596,-35.16477065,0.00024657,2]
[396473786,1764978669606,-235.10532935,0.00024657,2]
[396473787,1764978670455,-500.0,0.00023323,2]
[396473788,1764978670465,-242.5,0.00023323,2]
[396473789,1764978670479,-257.5,0.00023323,2]
[396473790,1764978670489,-471.75294462,0.00023323,2]
[396473791,1764978671648,-204.0,0.00020226,2]
[396473792,1764978671661,-28.24705538,0.00023323,2]
[396473793,1764978671674,-374.78997262,0.00023323,2]
[396473794,1764978671704,-125.21002738,0.00023323,2]
[396473795,1764978671717,-470.15803926,0.00023323,2]